bitfinex-derivatives/quotes_BTCF0:USTF0_20260207
["timestamp","ask_amount","ask_price","bid_price","bid_amount"]
[1770499213090,0.34310697,69536.0,69519.0,0.46790449]
[1770499213293,0.34310697,69536.0,69519.0,0.35342174]
[1770499216099,0.34310697,69552.0,69534.0,0.35342174]
[1770499216390,0.086285,69584.0,69541.0,0.35342174]
[1770499216391,0.34310697,69558.0,69541.0,0.35342174]
[1770499217390,0.35749297,69557.0,69541.0,0.35342174]
[1770499218395,0.34310697,69563.0,69547.0,0.35342174]
[1770499218594,0.014384,69567.0,69547.0,0.35342174]
[1770499218996,0.35749097,69567.0,69547.0,0.35342174]
[1770499220500,0.34310697,69567.0,69547.0,0.35342174]
[1770499220895,0.35749097,69567.0,69547.0,0.35342174]
[1770499222407,0.34310697,69567.0,69547.0,0.35342174]
[1770499222594,0.34310697,69567.0,69549.0,0.35342174]
[1770499222796,0.34310697,69574.0,69551.0,0.35342174]
[1770499223309,0.014383,69572.0,69552.0,0.014387]
[1770499223602,0.34310697,69574.0,69558.0,0.35342174]
[1770499224706,0.34310697,69570.0,69550.0,0.35342174]
[1770499224911,0.34310697,69570.0,69554.0,0.35342174]
[1770499225603,0.34310697,69570.0,69555.0,0.014386]
[1770499225805,0.34310697,69570.0,69556.0,0.35342174]
[1770499227414,0.57031386,69610.0,69542.0,0.93084]
[1770499227415,0.34310697,69592.0,69566.0,0.35342174]
[1770499227602,0.34310697,69585.0,69566.0,0.35342174]
[1770499228502,0.34310697,69585.0,69563.0,0.35342174]
[1770499229308,0.34310697,69578.0,69554.0,0.12886875]
[1770499229505,0.34310697,69576.0,69555.0,0.35342174]
[1770499230812,0.34410697,69576.0,69555.0,0.35342174]
[1770499231512,0.34310697,69576.0,69555.0,0.35342174]
[1770499232114,0.34310697,69576.0,69555.0,0.36780774]
[1770499232901,0.34310697,69587.0,69562.0,0.35342174]
[1770499233611,0.34310697,69587.0,69565.0,0.35342174]
[1770499237523,0.34310697,69587.0,69567.0,0.34357051]
[1770499242425,0.34310697,69587.0,69569.0,0.34357051]
[1770499249130,0.34310697,69587.0,69570.0,0.35795351]
[1770499249729,0.34778204,69580.0,69556.0,0.11448275]
[1770499250029,0.34778204,69573.0,69554.0,0.014386]
[1770499256829,0.34778204,69571.0,69551.0,0.11448275]
[1770499257229,0.34778204,69571.0,69552.0,0.014387]
[1770499258333,0.34778204,69571.0,69552.0,0.35795751]
[1770499258632,0.34778204,69571.0,69554.0,0.35795651]
[1770499260539,0.34778204,69571.0,69556.0,0.014386]
[1770499260742,0.34778204,69571.0,69556.0,0.35795651]
[1770499262736,0.34778204,69581.0,69561.0,0.34357051]
[1770499262937,0.34778204,69581.0,69563.0,0.34357051]
[1770499263636,0.34778204,69581.0,69565.0,0.34357051]
[1770499263838,0.34778204,69588.0,69565.0,0.34357051]
[1770499265436,0.36355506,69584.0,69567.0,0.34357051]
[1770499266233,0.34917506,69580.0,69562.0,0.014385]
[1770499266435,0.34917506,69576.0,69556.0,0.46535536]
[1770499266639,0.34917506,69574.0,69556.0,0.46535536]
[1770499267036,0.34917506,69574.0,69556.0,0.35087261]
[1770499269029,0.34917506,69580.0,69562.0,0.35087261]
[1770499269234,0.014381,69583.0,69562.0,0.35087261]
[1770499270333,0.014381,69583.0,69563.0,0.014385]
[1770499270534,0.014381,69583.0,69564.0,0.35087261]
[1770499270737,0.36355606,69583.0,69564.0,0.35087261]
[1770499271140,0.36355606,69581.0,69564.0,0.35087261]
[1770499276443,0.33726054,69598.0,69566.0,0.32845128]
[1770499277145,0.01438,69586.0,69568.0,0.32845128]
[1770499279249,0.35163854,69594.0,69574.0,0.32845128]
[1770499279447,0.35163854,69594.0,69576.0,0.32845128]
[1770499280145,0.33726054,69594.0,69576.0,0.32845128]
[1770499280353,0.014378,69597.0,69576.0,0.32845128]
[1770499280550,0.33726054,69599.0,69578.0,0.32845128]
[1770499281352,0.33726054,69599.0,69580.0,0.32845128]
[1770499282955,0.33726054,69597.0,69580.0,0.32845128]
[1770499283154,0.33726054,69597.0,69576.0,0.014382]
[1770499283356,0.33726054,69595.0,69576.0,0.014382]
[1770499283558,0.33726054,69593.0,69573.0,0.11448275]
[1770499283748,0.33726054,69593.0,69572.0,0.12886575]
[1770499284459,0.33726054,69593.0,69570.0,0.32845128]
[1770499284460,0.33726054,69586.0,69570.0,0.32845128]
[1770499285354,0.33726054,69584.0,69570.0,0.32845128]
[1770499286150,0.33726054,69582.0,69565.0,0.32845128]
[1770499287050,0.33726054,69590.0,69567.0,0.32845128]
[1770499287258,0.33726054,69590.0,69573.0,0.32845128]
[1770499288148,0.014378,69595.0,69575.0,0.32845128]
[1770499290961,0.35163854,69595.0,69575.0,0.32845128]
[1770499295262,0.35163854,69595.0,69577.0,0.32845128]
[1770499295757,0.33336788,69592.0,69577.0,0.32845128]
[1770499299462,0.33336788,69599.0,69577.0,0.32845128]
[1770499299659,0.014377,69602.0,69580.0,0.31778554]
[1770499299858,0.34774488,69600.0,69580.0,0.31778554]
[1770499302858,0.33336788,69597.0,69580.0,0.31778554]
[1770499303365,0.014378,69596.0,69575.0,0.43226829]
[1770499303569,0.33336788,69595.0,69574.0,0.11448275]
[1770499303769,0.33336788,69591.0,69575.0,0.014382]
[1770499304969,0.33336788,69591.0,69573.0,0.11448275]
[1770499305264,0.33336788,69591.0,69574.0,0.33042132]
[1770499305568,0.33336788,69591.0,69574.0,0.11448275]
[1770499306363,0.33336788,69591.0,69575.0,0.31778554]
[1770499306565,0.014378,69595.0,69575.0,0.44665029]
[1770499306763,0.014378,69595.0,69576.0,0.31778554]
[1770499307165,0.014378,69595.0,69576.0,0.43226829]
[1770499307364,0.014378,69595.0,69577.0,0.31778554]
[1770499307568,0.33336788,69594.0,69576.0,0.11448275]
[1770499307959,0.33336788,69594.0,69577.0,0.31778554]
[1770499308366,0.014378,69598.0,69581.0,0.31778554]
[1770499308565,0.34774488,69601.0,69581.0,0.31778554]
[1770499309260,0.33336788,69601.0,69582.0,0.014381]
[1770499309460,0.33336788,69601.0,69583.0,0.31778554]
[1770499310767,0.33336788,69601.0,69585.0,0.31778554]
[1770499313674,0.33336788,69599.0,69581.0,0.11448275]
[1770499313869,0.33336788,69597.0,69580.0,0.43226829]
[1770499316068,0.42773539,69624.0,69588.0,0.31778554]
[1770499316069,0.33336788,69607.0,69588.0,0.31778554]
[1770499317484,0.34774388,69607.0,69588.0,0.31778554]
[1770499317969,0.34774388,69607.0,69588.0,0.33216554]
[1770499320282,0.34774388,69605.0,69588.0,0.31778554]
[1770499330692,0.34774388,69605.0,69588.0,0.33216454]
[1770499330880,0.33336788,69605.0,69588.0,0.33216454]
[1770499331080,0.34019519,69610.0,69591.0,0.32916922]
[1770499331284,0.014375,69609.0,69592.0,0.014379]
[1770499331591,0.014375,69609.0,69593.0,0.32083465]
[1770499331990,0.34019519,69610.0,69595.0,0.32083465]
[1770499332184,0.34019519,69610.0,69597.0,0.32083465]
[1770499332385,0.014373,69619.0,69599.0,0.32083465]
[1770499332687,0.014373,69619.0,69586.0,0.12939294]
[1770499332688,0.014373,69619.0,69601.0,0.32083465]
[1770499332890,0.33998268,69629.0,69608.0,0.32083465]
[1770499333392,0.33998268,69624.0,69608.0,0.32083465]
[1770499334488,0.33998268,69621.0,69596.0,0.32083465]
[1770499334693,0.33998268,69615.0,69596.0,0.32083465]
[1770499334886,0.33998268,69609.0,69590.0,0.32083465]
[1770499337295,0.33998268,69609.0,69577.0,0.1724031]
[1770499337296,0.33998268,69607.0,69585.0,0.32083465]
[1770499338290,0.33998268,69607.0,69587.0,0.32083465]
[1770499338991,0.33998268,69607.0,69586.0,0.01438]
[1770499339190,0.33998268,69605.0,69586.0,0.01438]
[1770499341898,0.33998268,69603.0,69584.0,0.32083465]
[1770499342394,0.33998268,69603.0,69584.0,0.33521465]
[1770499342899,0.33998268,69603.0,69584.0,0.45022759]
[1770499343698,0.33998268,69601.0,69584.0,0.43584759]
[1770499349399,0.33998268,69601.0,69585.0,0.01438]
[1770499350203,0.33998268,69601.0,69588.0,0.32083465]
[1770499351498,0.33998268,69601.0,69589.0,0.33521365]
[1770499351697,0.33998268,69608.0,69589.0,0.33521365]
[1770499351898,0.33998268,69608.0,69592.0,0.32083465]
[1770499352100,0.33998268,69615.0,69596.0,0.32083465]
[1770499352404,0.33998268,69613.0,69596.0,0.32083465]
[1770499353906,0.33998268,69613.0,69585.0,0.21446829]
[1770499353907,0.33998268,69611.0,69590.0,0.32083465]
[1770499355109,0.34098268,69611.0,69590.0,0.32083465]
[1770499355509,0.32161022,69609.0,69590.0,0.32083465]
[1770499356207,0.32161022,69609.0,69591.0,0.3492584]
[1770499356513,0.001,69611.0,69594.0,0.3348794]
[1770499356803,0.32161022,69614.0,69601.0,0.3348794]
[1770499357412,0.32161022,69614.0,69602.0,0.3492564]
[1770499357598,0.32161022,69621.0,69602.0,0.3492564]
[1770499358209,0.32161022,69621.0,69605.0,0.3348794]
[1770499361312,0.32161022,69621.0,69608.0,0.3492544]
[1770499361507,0.32161022,69621.0,69610.0,0.014375]
[1770499362205,0.32161022,69627.0,69610.0,0.3492544]
[1770499362706,0.32161022,69627.0,69610.0,0.3348794]
[1770499362912,0.32161022,69627.0,69599.0,0.1724031]
[1770499362913,0.32161022,69639.0,69620.0,0.3348794]
[1770499363913,0.32161022,69628.0,69609.0,0.014375]
[1770499365811,0.32161022,69628.0,69606.0,0.3348794]
[1770499365812,0.32161022,69628.0,69612.0,0.014375]
[1770499367016,0.32161022,69628.0,69605.0,0.11501294]
[1770499367017,0.32161022,69626.0,69608.0,0.3348794]
[1770499368617,0.32161022,69626.0,69605.0,0.014376]
[1770499368618,0.32161022,69622.0,69601.0,0.014377]
[1770499369716,0.32161022,69622.0,69604.0,0.014376]
[1770499371614,0.32161022,69622.0,69598.0,0.3348794]
[1770499371814,0.33598322,69622.0,69599.0,0.014377]
[1770499372015,0.33598322,69622.0,69599.0,0.3492564]
[1770499373316,0.32161022,69619.0,69599.0,0.3492564]
[1770499376317,0.32161022,69617.0,69599.0,0.3492564]
[1770499377611,0.33598122,69629.0,69608.0,0.3348794]
[1770499377810,0.33598122,69629.0,69610.0,0.3348794]
[1770499377811,0.32161022,69629.0,69610.0,0.3348794]
[1770499378219,0.33598122,69629.0,69610.0,0.3348794]
[1770499378514,0.32161022,69626.0,69610.0,0.3348794]
[1770499379216,0.014373,69621.0,69601.0,0.014377]
[1770499379419,0.32161022,69620.0,69601.0,0.014377]
[1770499379713,0.32161022,69620.0,69601.0,0.3492564]
[1770499381414,0.32161022,69618.0,69601.0,0.3348794]
[1770499382014,0.014372,69625.0,69605.0,0.3348794]
[1770499382212,0.33598222,69625.0,69605.0,0.3348794]
[1770499382613,0.33598222,69625.0,69595.0,0.93012]
[1770499382614,0.32161022,69625.0,69607.0,0.3348794]
[1770499382914,0.32161022,69625.0,69595.0,0.93012]
[1770499382915,0.32161022,69644.0,69617.0,0.3348794]
[1770499383418,0.014369,69639.0,69622.0,0.3348794]
[1770499386607,0.32161022,69644.0,69625.0,0.33262546]
[1770499386608,0.33597822,69644.0,69625.0,0.33262546]
[1770499387613,0.33597822,69644.0,69625.0,0.31825346]
[1770499387614,0.014369,69638.0,69625.0,0.31825346]
[1770499387816,0.33555182,69635.0,69618.0,0.014373]
[1770499389007,0.33555182,69635.0,69618.0,0.33262646]
[1770499390325,0.33555182,69633.0,69614.0,0.014374]
[1770499391725,0.33555182,69633.0,69614.0,0.33947263]
[1770499391927,0.014367,69649.0,69600.0,0.14459754]
[1770499391928,0.014369,69637.0,69616.0,0.33947263]
[1770499392727,0.34091695,69632.0,69612.0,0.32509863]
[1770499394427,0.34091695,69630.0,69611.0,0.33947363]
[1770499395033,0.34091695,69630.0,69614.0,0.32509863]
[1770499397930,0.34091695,69635.0,69616.0,0.32509863]
[1770499398134,0.014369,69639.0,69620.0,0.32509863]
[1770499398324,0.34091695,69641.0,69620.0,0.32509863]
[1770499398631,0.34091695,69638.0,69620.0,0.32509863]
[1770499399130,0.014368,69643.0,69624.0,0.32509863]
[1770499399428,0.34091695,69645.0,69627.0,0.32509863]
[1770499399628,0.34091695,69643.0,69627.0,0.32509863]
[1770499400334,0.014369,69640.0,69627.0,0.32509863]
[1770499402233,0.34091695,69643.0,69627.0,0.32509863]
[1770499404027,0.014368,69642.0,69627.0,0.32509863]
[1770499405136,0.34091695,69639.0,69621.0,0.32509863]
[1770499405334,0.34091695,69635.0,69614.0,0.32509863]
[1770499405840,0.34091695,69629.0,69608.0,0.33947363]
[1770499406029,0.34091695,69629.0,69610.0,0.014375]
[1770499408630,0.34091695,69629.0,69608.0,0.32509863]
[1770499408631,0.35528795,69629.0,69608.0,0.32509863]
[1770499409131,0.35528795,69629.0,69609.0,0.33947363]
[1770499409132,0.34091695,69629.0,69609.0,0.33947363]
[1770499409337,0.34091695,69629.0,69613.0,0.32509863]
[1770499412541,0.35528695,69635.0,69615.0,0.32509863]
[1770499413445,0.35528695,69635.0,69617.0,0.32509863]
[1770499414444,0.34091695,69632.0,69617.0,0.32509863]
[1770499415538,0.014369,69637.0,69619.0,0.32693407]
[1770499416044,0.3634871,69635.0,69619.0,0.32693407]
[1770499416245,0.3634871,69633.0,69619.0,0.32693407]
[1770499416547,0.014371,69631.0,69619.0,0.32693407]
[1770499418646,0.3491171,69633.0,69619.0,0.32693407]
[1770499419649,0.01437,69637.0,69619.0,0.32693407]
[1770499419850,0.3491171,69639.0,69622.0,0.32693407]
[1770499422550,0.014369,69638.0,69622.0,0.32693407]
[1770499423545,0.3491171,69638.0,69616.0,0.014374]
[1770499423750,0.3491171,69638.0,69616.0,0.34130807]
[1770499424151,0.01437,69636.0,69616.0,0.32693407]
[1770499424342,0.3634871,69636.0,69616.0,0.32693407]
[1770499425454,0.01437,69636.0,69616.0,0.32693407]
[1770499426354,0.3634871,69636.0,69616.0,0.32693407]
[1770499429352,0.3491171,69641.0,69618.0,0.32693407]
[1770499429651,0.014367,69648.0,69631.0,0.32693407]
[1770499429844,0.3491171,69651.0,69631.0,0.32693407]
[1770499429845,0.014368,69645.0,69631.0,0.32693407]
[1770499431154,0.014368,69643.0,69631.0,0.32693407]
[1770499431448,0.3634861,69640.0,69623.0,0.32693407]
[1770499435159,0.3634871,69637.0,69623.0,0.32693407]
[1770499435361,0.3634871,69637.0,69616.0,0.32693407]
[1770499435557,0.014366,69654.0,69624.0,0.32693407]
[1770499435763,0.014366,69654.0,69612.0,0.11501294]
[1770499435764,0.014368,69644.0,69626.0,0.32693407]
[1770499435964,0.3634861,69642.0,69626.0,0.32693407]
[1770499437058,0.014369,69638.0,69621.0,0.014373]
[1770499437263,0.3634881,69632.0,69619.0,0.32693407]
[1770499438764,0.3634881,69632.0,69613.0,0.32693407]
[1770499439561,0.3634881,69630.0,69613.0,0.32693407]
[1770499440156,0.014372,69627.0,69613.0,0.32693407]
[1770499440368,0.3634891,69627.0,69613.0,0.32693407]
[1770499441172,0.014368,69647.0,69601.0,0.1724031]
[1770499441173,0.3491171,69624.0,69608.0,0.014375]
[1770499441868,0.3634891,69623.0,69607.0,0.32693407]
[1770499442263,0.3634891,69623.0,69605.0,0.014376]
[1770499442464,0.3491171,69618.0,69601.0,0.32693407]
[1770499442670,0.014373,69622.0,69603.0,0.32693407]
[1770499442867,0.3634901,69619.0,69603.0,0.32693407]
[1770499444975,0.3491171,69616.0,69599.0,0.014377]
[1770499445670,0.3491171,69616.0,69599.0,0.35782861]
[1770499449773,0.3491171,69616.0,69599.0,0.34345161]
[1770499449976,0.34644475,69614.0,69599.0,0.34345161]
[1770499452667,0.34053054,69612.0,69594.0,0.45817984]
[1770499452867,0.34053054,69610.0,69594.0,0.3431669]
[1770499453875,0.014371,69628.0,69589.0,0.3431669]
[1770499453876,0.34053054,69608.0,69589.0,0.3431669]
[1770499455476,0.34053054,69606.0,69589.0,0.3431669]
[1770499455875,0.34053054,69604.0,69587.0,0.01438]
[1770499457774,0.34053054,69604.0,69584.0,0.3575469]
[1770499458678,0.34053054,69602.0,69584.0,0.3575469]
[1770499460975,0.34053054,69602.0,69584.0,0.3431669]
[1770499463874,0.34053054,69600.0,69584.0,0.3431669]
[1770499464675,0.34053054,69596.0,69579.0,0.3431669]
[1770499464983,0.34053054,69594.0,69579.0,0.3431669]
[1770499465177,0.34053054,69592.0,69579.0,0.3431669]
[1770499465576,0.014378,69598.0,69579.0,0.3431669]
[1770499465773,0.35490854,69598.0,69579.0,0.3431669]
[1770499465974,0.35490854,69596.0,69579.0,0.3431669]
[1770499466180,0.34053054,69593.0,69575.0,0.3575489]
[1770499466982,0.34053054,69593.0,69578.0,0.3431669]
[1770499467380,0.014378,69597.0,69580.0,0.3431669]
[1770499469284,0.35490854,69594.0,69580.0,0.3431669]
[1770499470585,0.35490854,69594.0,69573.0,0.014383]
[1770499470586,0.34053054,69591.0,69573.0,0.3431669]
[1770499470885,0.01438,69588.0,69573.0,0.3431669]
[1770499471278,0.34053054,69591.0,69573.0,0.3431669]
[1770499471484,0.35490954,69590.0,69573.0,0.3431669]
[1770499474190,0.34053054,69590.0,69577.0,0.3431669]
[1770499474383,0.49960639,69617.0,69569.0,0.93]
[1770499474384,0.34053054,69606.0,69587.0,0.3431669]
[1770499474583,0.34053054,69613.0,69595.0,0.3431669]
[1770499475382,0.34053054,69613.0,69597.0,0.3431669]
[1770499476083,0.35210709,69612.0,69597.0,0.3431669]
[1770499478288,0.35210509,69620.0,69601.0,0.33159341]
[1770499478685,0.35210609,69618.0,69601.0,0.33159341]
[1770499478880,0.35210609,69615.0,69601.0,0.33159341]
[1770499479083,0.014373,69618.0,69601.0,0.33159341]
[1770499480093,0.35210509,69618.0,69601.0,0.33159341]
[1770499487706,0.33773209,69629.0,69607.0,0.33159341]
[1770499487902,0.33773209,69626.0,69609.0,0.33159341]
[1770499488203,0.014372,69625.0,69609.0,0.33159341]
[1770499488702,0.33773209,69626.0,69609.0,0.34596841]
[1770499489793,0.33773209,69626.0,69611.0,0.014375]
[1770499490194,0.33773209,69626.0,69609.0,0.33159341]
[1770499496902,0.33773209,69626.0,69611.0,0.33159341]
[1770499497112,0.33773209,69626.0,69613.0,0.33159341]
[1770499497305,0.33773209,69632.0,69613.0,0.33159341]
[1770499497505,0.35210309,69631.0,69613.0,0.33159341]
[1770499499002,0.33773209,69631.0,69615.0,0.33159341]
[1770499499607,0.33773209,69631.0,69617.0,0.33159341]
[1770499500112,0.35210209,69637.0,69619.0,0.33159341]
[1770499500501,0.33773209,69637.0,69623.0,0.33159341]
[1770499500699,0.014369,69640.0,69623.0,0.33159341]
[1770499501309,0.33773209,69642.0,69625.0,0.33159341]
[1770499501507,0.014368,69646.0,69627.0,0.33159341]
[1770499501700,0.35210009,69646.0,69627.0,0.33159341]
[1770499501902,0.014368,69644.0,69627.0,0.33159341]
[1770499502100,0.35210009,69644.0,69627.0,0.33159341]
[1770499504214,0.33773209,69641.0,69623.0,0.014372]
[1770499504811,0.33773209,69639.0,69623.0,0.014372]
[1770499506899,0.33773209,69639.0,69621.0,0.33159341]
[1770499507416,0.33023746,69637.0,69616.0,0.31637934]
[1770499507620,0.33023746,69634.0,69616.0,0.31637934]
[1770499508909,0.33023746,69639.0,69619.0,0.31637934]
[1770499509106,0.014369,69639.0,69619.0,0.31637934]
[1770499509708,0.33023746,69638.0,69619.0,0.31637934]
[1770499511814,0.01437,69637.0,69619.0,0.31637934]
[1770499513512,0.34542349,69636.0,69619.0,0.31637934]
[1770499513910,0.34542349,69634.0,69619.0,0.31637934]
[1770499514718,0.34542349,69633.0,69613.0,0.3347608]
[1770499516316,0.014371,69631.0,69613.0,0.3347608]
[1770499516516,0.34542349,69630.0,69613.0,0.3347608]
[1770499516717,0.01437,69634.0,69613.0,0.3491348]
[1770499517010,0.01437,69634.0,69617.0,0.3347608]
[1770499517319,0.34542349,69635.0,69617.0,0.3347608]
[1770499517523,0.014369,69637.0,69617.0,0.3347608]
[1770499517917,0.01437,69635.0,69617.0,0.3347608]
[1770499518324,0.35979349,69635.0,69617.0,0.3347608]
[1770499526925,0.34542349,69635.0,69617.0,0.3347608]
[1770499527130,0.35979449,69632.0,69617.0,0.3347608]
[1770499527429,0.34542349,69629.0,69611.0,0.3347608]
[1770499529230,0.34542349,69627.0,69611.0,0.3347608]
[1770499531628,0.34542349,69625.0,69608.0,0.3347608]
[1770499531834,0.34542349,69625.0,69608.0,0.44937356]
[1770499533024,0.34542349,69625.0,69608.0,0.3347608]
[1770499534029,0.014371,69629.0,69610.0,0.3347608]
[1770499534939,0.014371,69629.0,69612.0,0.3347608]
[1770499539842,0.42773539,69652.0,69612.0,0.3347608]
[1770499540050,0.42773539,69652.0,69598.0,0.28605854]
[1770499540051,0.31853917,69682.0,69642.0,0.34213285]
[1770499540337,0.31853917,69682.0,69661.0,0.34213285]
[1770499540634,0.31853917,69682.0,69662.0,0.014364]
[1770499540841,0.31853917,69682.0,69662.0,0.35649685]
[1770499541041,0.31853917,69682.0,69662.0,0.34213285]
[1770499541234,0.31853917,69682.0,69657.0,0.11461276]
[1770499541429,0.31853917,69682.0,69656.0,0.12897776]
[1770499541633,0.31853917,69682.0,69655.0,0.34213285]
[1770499541838,0.31853917,69682.0,69653.0,0.11461276]
[1770499542038,0.31853917,69682.0,69654.0,0.014366]
[1770499542435,0.31853917,69682.0,69658.0,0.014365]
[1770499542642,0.31853917,69682.0,69658.0,0.35649785]
[1770499542942,0.31853917,69682.0,69658.0,0.014365]
[1770499543144,0.31853917,69682.0,69669.0,0.50212216]
[1770499543447,0.31853917,69682.0,69661.0,0.28727518]
[1770499543741,0.31853917,69682.0,69662.0,0.21569689]
[1770499543936,0.31853917,69682.0,69663.0,0.21569689]
[1770499544138,0.31853917,69682.0,69664.0,0.21569689]
[1770499544337,0.31853917,69682.0,69665.0,0.21569689]
[1770499544538,0.31853917,69682.0,69666.0,0.21569689]
[1770499544841,0.31853917,69682.0,69667.0,0.21569689]
[1770499545041,0.31853917,69682.0,69657.0,0.21569689]
[1770499545241,0.31853917,69682.0,69656.0,0.014365]
[1770499545639,0.31853917,69682.0,69657.0,0.21569689]
[1770499546045,0.31853917,69682.0,69658.0,0.21569689]
[1770499546343,0.31853917,69682.0,69657.0,0.21569689]
[1770499546735,0.31853917,69682.0,69658.0,0.21569689]
[1770499546931,0.31853917,69682.0,69657.0,0.21569689]
[1770499547136,0.31853917,69680.0,69651.0,0.014366]
[1770499547338,0.31853917,69678.0,69646.0,0.35650085]
[1770499547834,0.31853917,69678.0,69650.0,0.35649985]
[1770499548744,0.31853917,69676.0,69650.0,0.35649985]
[1770499549947,0.31853917,69673.0,69650.0,0.35649985]
[1770499550241,0.14051196,69649.0,69625.0,0.014372]
[1770499550435,0.014363,69666.0,69621.0,0.35650585]
[1770499550436,0.14268775,69645.0,69621.0,0.35650585]
[1770499550836,0.14265413,69642.0,69621.0,0.34213285]
[1770499552046,0.16652466,69640.0,69621.0,0.34213285]
[1770499552446,0.16958064,69638.0,69621.0,0.34213285]
[1770499554947,0.19152279,69634.0,69615.0,0.34213285]
[1770499555138,0.014367,69650.0,69602.0,0.2847893]
[1770499555139,0.014372,69626.0,69608.0,0.34213285]
[1770499555543,0.20654506,69626.0,69608.0,0.34213285]
[1770499556648,0.20654506,69626.0,69609.0,0.21584421]
[1770499556843,0.20654506,69626.0,69610.0,0.21584421]
[1770499557044,0.20654506,69626.0,69611.0,0.21584421]
[1770499557245,0.20654506,69626.0,69612.0,0.21584421]
[1770499557451,0.20654506,69626.0,69608.0,0.34213285]
[1770499557646,0.20654506,69626.0,69609.0,0.21584382]
[1770499557851,0.20654506,69626.0,69610.0,0.21584382]
[1770499558149,0.20654506,69626.0,69611.0,0.21584382]
[1770499558345,0.20654506,69626.0,69608.0,0.34213285]
[1770499558346,0.20654506,69626.0,69612.0,0.21584382]
[1770499558546,0.20654506,69626.0,69608.0,0.34213285]
[1770499558748,0.20654506,69626.0,69609.0,0.21584377]
[1770499558951,0.20654506,69626.0,69610.0,0.21584377]
[1770499559252,0.19217306,69626.0,69611.0,0.21584377]
[1770499559450,0.19217306,69626.0,69612.0,0.21584377]
[1770499559749,0.19217306,69626.0,69609.0,0.35650785]
[1770499559943,0.19217306,69626.0,69611.0,0.34213285]
[1770499560139,0.19217306,69626.0,69613.0,0.34213285]
[1770499560344,0.19217306,69626.0,69614.0,0.21584023]
[1770499560557,0.19217306,69626.0,69613.0,0.34213285]
[1770499560852,0.19217306,69626.0,69614.0,0.21584036]
[1770499561049,0.19217306,69626.0,69615.0,0.21584036]
[1770499561251,0.19217306,69626.0,69606.0,0.34213285]
[1770499561456,0.19217306,69626.0,69608.0,0.34213285]
[1770499561651,0.19217306,69626.0,69610.0,0.34213285]
[1770499561853,0.19217306,69626.0,69611.0,0.21583831]
[1770499562052,0.19217306,69626.0,69612.0,0.21583831]
[1770499562242,0.19217306,69626.0,69613.0,0.21583831]
[1770499562446,0.19217306,69626.0,69614.0,0.21583831]
[1770499562647,0.19217306,69626.0,69615.0,0.21583831]
[1770499562849,0.19217306,69626.0,69610.0,0.34213285]
[1770499563051,0.19217306,69626.0,69611.0,0.21583835]
[1770499563250,0.19217306,69626.0,69612.0,0.21583835]
[1770499563551,0.19217306,69626.0,69613.0,0.21583835]
[1770499563858,0.19217306,69626.0,69614.0,0.21583835]
[1770499564057,0.19217306,69626.0,69615.0,0.21583835]
[1770499564255,0.19217306,69626.0,69610.0,0.34213285]
[1770499564459,0.19217306,69626.0,69611.0,0.21584223]
[1770499564657,0.19217306,69626.0,69612.0,0.21584223]
[1770499564859,0.19217306,69626.0,69613.0,0.21584223]
[1770499565053,0.19217306,69626.0,69614.0,0.21584223]
[1770499565255,0.19217306,69626.0,69610.0,0.34213285]
[1770499565454,0.19217306,69626.0,69611.0,0.21584382]
[1770499565756,0.24074846,69620.0,69602.0,0.21400535]
[1770499566057,0.24074846,69620.0,69599.0,0.21400535]
[1770499566256,0.24074846,69620.0,69599.0,0.36790202]
[1770499566859,0.014374,69616.0,69599.0,0.36790202]
[1770499568170,0.014374,69616.0,69599.0,0.58190737]
[1770499568377,0.014374,69616.0,69599.0,0.36790202]
[1770499569660,0.014374,69616.0,69599.0,0.38227902]
[1770499570472,0.014374,69616.0,69600.0,0.36790202]
[1770499571772,0.014371,69629.0,69607.0,0.36381997]
[1770499571969,0.29849887,69639.0,69622.0,0.36381997]
[1770499572172,0.31286787,69639.0,69622.0,0.36381997]
[1770499572374,0.014368,69643.0,69624.0,0.36381997]
[1770499572876,0.014369,69640.0,69624.0,0.36381997]
[1770499573274,0.001,69639.0,69624.0,0.36381997]
[1770499573573,0.014368,69646.0,69628.0,0.3910867]
[1770499574371,0.014368,69646.0,69630.0,0.3910867]
[1770499575077,0.014367,69650.0,69632.0,0.3910867]
[1770499575375,0.014367,69650.0,69613.0,0.014374]
[1770499575376,0.014367,69650.0,69634.0,0.3910867]
[1770499577872,0.014366,69654.0,69634.0,0.3910867]
[1770499578978,0.32125531,69668.0,69639.0,0.3910867]
[1770499579278,0.014366,69652.0,69639.0,0.3910867]
[1770499579977,0.014367,69650.0,69630.0,0.3910867]
[1770499580481,0.014366,69654.0,69637.0,0.3910867]
[1770499581181,0.014365,69657.0,69637.0,0.3910867]
[1770499582381,0.014365,69657.0,69639.0,0.3910867]
[1770499587477,0.014365,69657.0,69641.0,0.3910867]
[1770499587881,0.014365,69661.0,69643.0,0.3910867]
[1770499588088,0.34368901,69662.0,69643.0,0.3910867]
[1770499589188,0.014364,69665.0,69647.0,0.3910867]
[1770499589982,0.014364,69665.0,69648.0,0.014367]
[1770499590183,0.014363,69668.0,69651.0,0.3910867]
[1770499593588,0.37112658,69674.0,69653.0,0.3910867]
[1770499594079,0.014363,69670.0,69654.0,0.014366]
[1770499594287,0.37112658,69674.0,69655.0,0.3910867]
[1770499595387,0.014363,69670.0,69655.0,0.3910867]
[1770499598282,0.014363,69668.0,69655.0,0.3910867]
[1770499598991,0.014364,69666.0,69655.0,0.3910867]
[1770499599491,0.39753583,69664.0,69645.0,0.37775551]
[1770499599683,0.39696218,69660.0,69630.0,0.37775551]
[1770499599884,0.014366,69652.0,69636.0,0.37775551]
[1770499600078,0.014367,69650.0,69636.0,0.37775551]
[1770499600285,0.39696218,69652.0,69636.0,0.37775551]
[1770499600479,0.39696218,69652.0,69625.0,0.37775551]
[1770499600691,0.014368,69644.0,69628.0,0.37775551]
[1770499600893,0.014369,69642.0,69628.0,0.37775551]
[1770499604482,0.014369,69639.0,69622.0,0.37775551]
[1770499604680,0.42141699,69639.0,69622.0,0.37775551]
[1770499608592,0.01437,69636.0,69622.0,0.37775551]
[1770499608788,0.40704799,69642.0,69625.0,0.014372]
[1770499608992,0.014368,69644.0,69625.0,0.39212751]
[1770499609294,0.014366,69654.0,69634.0,0.37775551]
[1770499609495,0.014366,69654.0,69636.0,0.37775551]
[1770499610595,0.014366,69653.0,69636.0,0.37775551]
[1770499613696,0.014365,69657.0,69638.0,0.37775551]
[1770499615699,0.014365,69660.0,69640.0,0.37775551]
[1770499616099,0.014365,69658.0,69640.0,0.37775551]
[1770499619000,0.40704799,69666.0,69640.0,0.37775551]
[1770499620399,0.014365,69658.0,69640.0,0.37775551]
[1770499623903,0.014365,69661.0,69640.0,0.37775551]
[1770499624206,0.40704799,69672.0,69644.0,0.37775551]
[1770499624907,0.014365,69660.0,69644.0,0.37775551]
[1770499626102,0.014365,69658.0,69644.0,0.37775551]
[1770499628010,0.43646353,69663.0,69644.0,0.37775551]